[Event "Titled Tuesday Blitz March 15 Late 2022"]
[White "Niemann, Hans Moke"]
[Black "Dubov, Daniil"]
[WhiteFideId "2093596"]
[BlackFideId "24126055"]
[WhiteElo "2632"]
[BlackElo "2791"]
[Result "1/2-1/2"]
[Round "09"]
[TimeControl "180+1"]
[Date "2022.03.15"]
[WhiteClock "0:00:24"]
[BlackClock "0:00:15"]

1. d4 {[%clk 0:02:59]}  d5 {[%clk 0:03:00]} 2. Nc3 {[%clk 0:03:00]}  Bf5 {[%clk 0:02:54]} 3. f3 {[%clk 0:03:00]}  e6 {[%clk 0:02:52]} 4. e4 {[%clk 0:03:00]}  Bg6 {[%clk 0:02:53]} 5. h4 {[%clk 0:03:00]}  h6 {[%clk 0:02:52]} 6. Nge2 {[%clk 0:02:59]}  Nf6 {[%clk 0:02:50]} 7. Nf4 {[%clk 0:02:58]}  Bh7 {[%clk 0:02:50]} 8. e5 {[%clk 0:02:57]}  Nfd7 {[%clk 0:02:49]} 9. Bd3 {[%clk 0:02:58]}  Bxd3 {[%clk 0:02:31]} 10. Qxd3 {[%clk 0:02:59]}  c5 {[%clk 0:02:31]} 11. Ncxd5 {[%clk 0:02:59]}  exd5 {[%clk 0:02:28]} 12. e6 {[%clk 0:02:59]}  Nf6 {[%clk 0:02:25]} 13. Qb5+ {[%clk 0:02:37]}  Nbd7 {[%clk 0:01:57]} 14. exd7+ {[%clk 0:02:24]}  Qxd7 {[%clk 0:01:56]} 15. Qxd7+ {[%clk 0:02:22]}  Kxd7 {[%clk 0:01:56]} 16. Be3 {[%clk 0:02:22]}  c4 {[%clk 0:01:54]} 17. Kf2 {[%clk 0:02:20]}  h5 {[%clk 0:01:52]} 18. Ne2 {[%clk 0:02:18]}  Bd6 {[%clk 0:01:41]} 19. Bf4 {[%clk 0:02:15]}  b5 {[%clk 0:01:29]} 20. Rhe1 {[%clk 0:02:05]}  Rhe8 {[%clk 0:01:25]} 21. Bxd6 {[%clk 0:01:46]}  Kxd6 {[%clk 0:01:26]} 22. Nf4 {[%clk 0:01:46]}  a5 {[%clk 0:01:23]} 23. a3 {[%clk 0:01:42]}  g6 {[%clk 0:01:19]} 24. Nh3 {[%clk 0:01:36]}  Rxe1 {[%clk 0:01:09]} 25. Rxe1 {[%clk 0:01:36]}  Re8 {[%clk 0:01:07]} 26. Rxe8 {[%clk 0:01:30]}  Nxe8 {[%clk 0:01:06]} 27. c3 {[%clk 0:01:29]}  Nf6 {[%clk 0:01:01]} 28. Ke3 {[%clk 0:01:23]}  Ke7 {[%clk 0:00:41]} 29. Nf4 {[%clk 0:01:16]}  Kd6 {[%clk 0:00:40]} 30. Ne2 {[%clk 0:01:14]}  Ke7 {[%clk 0:00:30]} 31. Kf4 {[%clk 0:01:14]}  Nd7 {[%clk 0:00:28]} 32. g4 {[%clk 0:01:11]}  Nb6 {[%clk 0:00:24]} 33. gxh5 {[%clk 0:01:07]}  gxh5 {[%clk 0:00:24]} 34. Ng3 {[%clk 0:00:39]}  Na4 {[%clk 0:00:23]} 35. Ke5 {[%clk 0:00:39]}  Nxb2 {[%clk 0:00:21]} 36. Kxd5 {[%clk 0:00:39]}  Na4 {[%clk 0:00:12]} 37. Ne2 {[%clk 0:00:39]}  Kd7 {[%clk 0:00:12]} 38. f4 {[%clk 0:00:39]}  Kc7 {[%clk 0:00:06]} 39. f5 {[%clk 0:00:39]}  Kd7 {[%clk 0:00:05]} 40. f6 {[%clk 0:00:40]}  Kc7 {[%clk 0:00:05]} 41. Ke5 {[%clk 0:00:41]}  Kd7 {[%clk 0:00:05]} 42. Kf5 {[%clk 0:00:41]}  Kd6 {[%clk 0:00:04]} 43. Kg5 {[%clk 0:00:41]}  Ke6 {[%clk 0:00:04]} 44. Nf4+ {[%clk 0:00:40]}  Kd6 {[%clk 0:00:04]} 45. Ne2 {[%clk 0:00:40]}  Ke6 {[%clk 0:00:04]} 46. d5+ {[%clk 0:00:40]}  Kxd5 {[%clk 0:00:04]} 47. Kxh5 {[%clk 0:00:40]}  Ke5 {[%clk 0:00:04]} 48. Kg5 {[%clk 0:00:38]}  Nc5 {[%clk 0:00:05]} 49. Ng3 {[%clk 0:00:33]}  Ne6+ {[%clk 0:00:04]} 50. Kg4 {[%clk 0:00:34]}  Kxf6 {[%clk 0:00:05]} 51. h5 {[%clk 0:00:33]}  Nc5 {[%clk 0:00:04]} 52. Kf4 {[%clk 0:00:31]}  b4 {[%clk 0:00:02]} 53. axb4 {[%clk 0:00:28]}  axb4 {[%clk 0:00:03]} 54. cxb4 {[%clk 0:00:28]}  Nd3+ {[%clk 0:00:03]} 55. Ke3 {[%clk 0:00:27]}  Nxb4 {[%clk 0:00:04]} 56. Kd4 {[%clk 0:00:28]}  Kg5 {[%clk 0:00:03]} 57. Kxc4 {[%clk 0:00:27]}  Nc6 {[%clk 0:00:03]} 58. Kd5 {[%clk 0:00:27]}  Ne7+ {[%clk 0:00:04]} 59. Kd6 {[%clk 0:00:23]}  Ng8 {[%clk 0:00:04]} 60. Ke5 {[%clk 0:00:22]}  Nf6 {[%clk 0:00:03]} 61. Ne4+ {[%clk 0:00:19]}  Nxe4 {[%clk 0:00:03]} 62. Kxe4 {[%clk 0:00:20]}  f6 {[%clk 0:00:02]} 63. h6 {[%clk 0:00:18]}  Kxh6 {[%clk 0:00:02]} 64. Kf5 {[%clk 0:00:18]}  Kg7 {[%clk 0:00:03]} 65. Kf4 {[%clk 0:00:19]}  Kg6 {[%clk 0:00:04]} 66. Kg4 {[%clk 0:00:19]}  f5+ {[%clk 0:00:05]} 67. Kf4 {[%clk 0:00:20]}  Kf6 {[%clk 0:00:06]} 68. Kf3 {[%clk 0:00:20]}  Ke5 {[%clk 0:00:07]} 69. Ke3 {[%clk 0:00:21]}  f4+ {[%clk 0:00:07]} 70. Kf3 {[%clk 0:00:21]}  Kf5 {[%clk 0:00:08]} 71. Kf2 {[%clk 0:00:22]}  Kg5 {[%clk 0:00:09]} 72. Kf3 {[%clk 0:00:22]}  Kf5 {[%clk 0:00:09]} 73. Kf2 {[%clk 0:00:23]}  Ke4 {[%clk 0:00:10]} 74. Ke2 {[%clk 0:00:23]}  f3+ {[%clk 0:00:11]} 75. Kf2 {[%clk 0:00:24]}  Kf4 {[%clk 0:00:11]} 76. Kf1 {[%clk 0:00:24]}  Kg4 {[%clk 0:00:12]} 77. Kf2 {[%clk 0:00:25]}  Kf4 {[%clk 0:00:13]} 78. Kf1 {[%clk 0:00:25]}  Kg3 {[%clk 0:00:14]} 79. Kg1 {[%clk 0:00:25]}  Kg4 {[%clk 0:00:15]} 80. Kf2 {[%clk 0:00:24]}  Kf4 {[%clk 0:00:15]} 1/2-1/2


[Site "https://www.chess.com"]

[Event "Titled Tuesday Blitz March 15 Late 2022"]
[White "Ozates, Tuna"]
[Black "Brunner, Nicolas"]
[WhiteFideId "6354521"]
[BlackFideId "620246"]
[WhiteElo "1887"]
[BlackElo "2372"]
[Result "1-0"]
[Round "09"]
[TimeControl "180+1"]
[Date "2022.03.16"]
[WhiteClock "0:00:42"]
[BlackClock "0:00:01"]

1. e4 {[%clk 0:02:58]}  e5 {[%clk 0:02:59]} 2. Nf3 {[%clk 0:02:58]}  Nc6 {[%clk 0:02:58]} 3. Bc4 {[%clk 0:02:59]}  Nf6 {[%clk 0:02:58]} 4. d3 {[%clk 0:02:58]}  Be7 {[%clk 0:02:57]} 5. O-O {[%clk 0:02:53]}  O-O {[%clk 0:02:57]} 6. Bb3 {[%clk 0:02:54]}  d6 {[%clk 0:02:53]} 7. c3 {[%clk 0:02:53]}  Na5 {[%clk 0:02:45]} 8. Bc2 {[%clk 0:02:52]}  c5 {[%clk 0:02:44]} 9. a3 {[%clk 0:02:53]}  Nc6 {[%clk 0:02:39]} 10. b4 {[%clk 0:02:53]}  a6 {[%clk 0:02:37]} 11. h3 {[%clk 0:02:53]}  h6 {[%clk 0:02:21]} 12. Be3 {[%clk 0:02:52]}  b6 {[%clk 0:02:14]} 13. d4 {[%clk 0:02:46]}  cxd4 {[%clk 0:02:11]} 14. cxd4 {[%clk 0:02:46]}  exd4 {[%clk 0:02:03]} 15. Nxd4 {[%clk 0:02:46]}  Nxd4 {[%clk 0:02:00]} 16. Qxd4 {[%clk 0:02:43]}  Bb7 {[%clk 0:01:58]} 17. Nc3 {[%clk 0:02:36]}  Rc8 {[%clk 0:01:57]} 18. Bb3 {[%clk 0:02:30]}  Nd7 {[%clk 0:01:54]} 19. Nd5 {[%clk 0:02:25]}  Bf6 {[%clk 0:01:10]} 20. Nxf6+ {[%clk 0:02:23]}  Nxf6 {[%clk 0:01:03]} 21. f3 {[%clk 0:02:22]}  b5 {[%clk 0:01:03]} 22. Rac1 {[%clk 0:02:12]}  Qe7 {[%clk 0:00:57]} 23. Bf4 {[%clk 0:02:07]}  Rxc1 {[%clk 0:00:51]} 24. Rxc1 {[%clk 0:02:07]}  Rd8 {[%clk 0:00:52]} 25. Qb6 {[%clk 0:01:57]}  Rd7 {[%clk 0:00:48]} 26. Rd1 {[%clk 0:01:46]}  d5 {[%clk 0:00:41]} 27. exd5 {[%clk 0:01:42]}  Bxd5 {[%clk 0:00:30]} 28. Bc2 {[%clk 0:01:22]}  Qe2 {[%clk 0:00:21]} 29. Qb8+ {[%clk 0:01:16]}  Qe8 {[%clk 0:00:15]} 30. Qxe8+ {[%clk 0:01:08]}  Nxe8 {[%clk 0:00:15]} 31. Bf5 {[%clk 0:01:08]}  Rd8 {[%clk 0:00:11]} 32. Be5 {[%clk 0:01:01]}  Kf8 {[%clk 0:00:07]} 33. Be4 {[%clk 0:00:58]}  f6 {[%clk 0:00:05]} 34. Bg3 {[%clk 0:00:48]}  Bxe4 {[%clk 0:00:02]} 35. Rxd8 {[%clk 0:00:48]}  Bc2 {[%clk 0:00:02]} 36. Ra8 {[%clk 0:00:46]}  Kf7 {[%clk 0:00:02]} 37. Rxa6 {[%clk 0:00:45]}  f5 {[%clk 0:00:02]} 38. Rb6 {[%clk 0:00:44]}  Ba4 {[%clk 0:00:02]} 39. Be5 {[%clk 0:00:42]}  h5 {[%clk 0:00:01]} 40. Kf2 {[%clk 0:00:41]}  g6 {[%clk 0:00:01]} 41. h4 {[%clk 0:00:42]} 1-0


[Site "https://www.chess.com"]

[Event "Titled Tuesday Blitz March 15 Late 2022"]
[White "Paravyan, David"]
[Black "Van Foreest, Jorden"]
[WhiteFideId "4194985"]
[BlackFideId "1039784"]
[WhiteElo "2569"]
[BlackElo "2609"]
[Result "1-0"]
[Round "09"]
[TimeControl "180+1"]
[Date "2022.03.15"]
[WhiteClock "0:00:21"]
[BlackClock "0:00:02"]

1. e4 {[%clk 0:03:00]}  e5 {[%clk 0:03:00]} 2. Nf3 {[%clk 0:03:01]}  Nf6 {[%clk 0:03:01]} 3. Nc3 {[%clk 0:03:01]}  Nc6 {[%clk 0:03:00]} 4. d4 {[%clk 0:03:02]}  exd4 {[%clk 0:03:01]} 5. Nxd4 {[%clk 0:03:03]}  Bb4 {[%clk 0:02:58]} 6. Nxc6 {[%clk 0:03:03]}  bxc6 {[%clk 0:02:59]} 7. Bd3 {[%clk 0:03:04]}  d5 {[%clk 0:02:59]} 8. exd5 {[%clk 0:03:04]}  O-O {[%clk 0:02:58]} 9. O-O {[%clk 0:03:05]}  Bg4 {[%clk 0:02:59]} 10. f3 {[%clk 0:03:05]}  Bh5 {[%clk 0:03:00]} 11. Bg5 {[%clk 0:03:04]}  cxd5 {[%clk 0:02:59]} 12. Bxf6 {[%clk 0:03:05]}  Qxf6 {[%clk 0:03:00]} 13. Nxd5 {[%clk 0:03:05]}  Qxb2 {[%clk 0:02:56]} 14. Rb1 {[%clk 0:03:05]}  Bc5+ {[%clk 0:02:51]} 15. Kh1 {[%clk 0:03:05]}  Qe5 {[%clk 0:02:49]} 16. f4 {[%clk 0:03:06]}  Bxd1 {[%clk 0:02:50]} 17. fxe5 {[%clk 0:03:07]}  Bg4 {[%clk 0:02:48]} 18. Nxc7 {[%clk 0:03:06]}  Rad8 {[%clk 0:02:30]} 19. h3 {[%clk 0:02:42]}  Bd7 {[%clk 0:01:49]} 20. Bc4 {[%clk 0:02:28]}  Bb6 {[%clk 0:01:47]} 21. Nd5 {[%clk 0:02:24]}  Bc5 {[%clk 0:01:46]} 22. Nf4 {[%clk 0:02:22]}  Bb6 {[%clk 0:01:37]} 23. e6 {[%clk 0:02:21]}  fxe6 {[%clk 0:01:33]} 24. Nxe6 {[%clk 0:02:12]}  Bxe6 {[%clk 0:01:24]} 25. Bxe6+ {[%clk 0:02:12]}  Kh8 {[%clk 0:01:24]} 26. c4 {[%clk 0:01:49]}  g6 {[%clk 0:01:21]} 27. Bd5 {[%clk 0:01:49]}  Kg7 {[%clk 0:01:18]} 28. g3 {[%clk 0:01:35]}  Rde8 {[%clk 0:01:14]} 29. Rxf8 {[%clk 0:01:33]}  Rxf8 {[%clk 0:01:14]} 30. Re1 {[%clk 0:01:33]}  Bc5 {[%clk 0:01:11]} 31. h4 {[%clk 0:01:32]}  Rf2 {[%clk 0:01:05]} 32. a4 {[%clk 0:01:31]}  Ra2 {[%clk 0:01:01]} 33. Rf1 {[%clk 0:01:31]}  Rxa4 {[%clk 0:00:55]} 34. Rf7+ {[%clk 0:01:31]}  Kh6 {[%clk 0:00:50]} 35. g4 {[%clk 0:01:22]}  g5 {[%clk 0:00:47]} 36. h5 {[%clk 0:00:59]}  Ra1+ {[%clk 0:00:47]} 37. Kg2 {[%clk 0:00:59]}  Rg1+ {[%clk 0:00:31]} 38. Kh3 {[%clk 0:00:57]}  Re1 {[%clk 0:00:28]} 39. Rc7 {[%clk 0:00:45]}  Re3+ {[%clk 0:00:26]} 40. Kg2 {[%clk 0:00:44]}  Rg3+ {[%clk 0:00:23]} 41. Kh2 {[%clk 0:00:40]}  Rxg4 {[%clk 0:00:04]} 42. Rxc5 {[%clk 0:00:36]}  Rh4+ {[%clk 0:00:05]} 43. Kg3 {[%clk 0:00:36]}  Kxh5 {[%clk 0:00:04]} 44. Rc7 {[%clk 0:00:36]}  Kh6 {[%clk 0:00:02]} 45. Rxa7 {[%clk 0:00:34]}  Rd4 {[%clk 0:00:02]} 46. Rd7 {[%clk 0:00:33]}  Rd3+ {[%clk 0:00:01]} 47. Kf2 {[%clk 0:00:33]}  g4 {[%clk 0:00:01]} 48. Rxh7+ {[%clk 0:00:30]}  Kg5 {[%clk 0:00:02]} 49. Ke2 {[%clk 0:00:21]}  Rd4 {[%clk 0:00:02]} 50. Ke3 {[%clk 0:00:19]}  Rd1 {[%clk 0:00:02]} 51. Rg7+ {[%clk 0:00:20]}  Kh4 {[%clk 0:00:01]} 52. Ke4 {[%clk 0:00:20]}  g3 {[%clk 0:00:02]} 53. Ke5 {[%clk 0:00:21]}  Kh3 {[%clk 0:00:01]} 54. c5 {[%clk 0:00:20]}  Re1+ {[%clk 0:00:01]} 55. Kd6 {[%clk 0:00:20]}  Rf1 {[%clk 0:00:01]} 56. c6 {[%clk 0:00:21]}  Rf7 {[%clk 0:00:02]} 1-0


[Site "https://www.chess.com"]

[Event "Titled Tuesday Blitz March 15 Late 2022"]
[White "Pichot, Alan"]
[Black "Deac, Bogdan-Daniel"]
[WhiteFideId "110973"]
[BlackFideId "1226380"]
[WhiteElo "2579"]
[BlackElo "2646"]
[Result "1/2-1/2"]
[Round "09"]
[TimeControl "180+1"]
[Date "2022.03.15"]
[WhiteClock "0:00:07"]
[BlackClock "0:00:06"]

1. e4 {[%clk 0:03:00]}  e5 {[%clk 0:03:00]} 2. Nf3 {[%clk 0:02:59]}  Nc6 {[%clk 0:03:01]} 3. Bb5 {[%clk 0:03:00]}  Nf6 {[%clk 0:03:01]} 4. d3 {[%clk 0:02:59]}  Bc5 {[%clk 0:03:01]} 5. c3 {[%clk 0:02:57]}  O-O {[%clk 0:03:02]} 6. O-O {[%clk 0:02:57]}  Re8 {[%clk 0:03:02]} 7. Bg5 {[%clk 0:02:54]}  a6 {[%clk 0:03:01]} 8. Ba4 {[%clk 0:02:51]}  h6 {[%clk 0:03:01]} 9. Bh4 {[%clk 0:02:52]}  g5 {[%clk 0:02:57]} 10. Bg3 {[%clk 0:02:51]}  b5 {[%clk 0:02:58]} 11. Bc2 {[%clk 0:02:51]}  d6 {[%clk 0:01:55]} 12. a4 {[%clk 0:02:48]}  Bg4 {[%clk 0:01:44]} 13. Nbd2 {[%clk 0:02:44]}  Nh5 {[%clk 0:01:38]} 14. b4 {[%clk 0:02:30]}  Bb6 {[%clk 0:01:37]} 15. Bb3 {[%clk 0:02:30]}  Ne7 {[%clk 0:00:53]} 16. Kh1 {[%clk 0:02:14]}  Ng6 {[%clk 0:00:50]} 17. h3 {[%clk 0:02:14]}  Be6 {[%clk 0:00:47]} 18. Bxe6 {[%clk 0:02:10]}  Rxe6 {[%clk 0:00:48]} 19. Bh2 {[%clk 0:02:03]}  Nhf4 {[%clk 0:00:45]} 20. axb5 {[%clk 0:01:48]}  axb5 {[%clk 0:00:45]} 21. d4 {[%clk 0:01:49]}  Rxa1 {[%clk 0:00:42]} 22. Qxa1 {[%clk 0:01:48]}  h5 {[%clk 0:00:42]} 23. Bxf4 {[%clk 0:01:14]}  Nxf4 {[%clk 0:00:36]} 24. Nh2 {[%clk 0:01:14]}  g4 {[%clk 0:00:28]} 25. hxg4 {[%clk 0:01:14]}  hxg4 {[%clk 0:00:29]} 26. Qd1 {[%clk 0:01:13]}  exd4 {[%clk 0:00:15]} 27. Qxg4+ {[%clk 0:01:10]}  Ng6 {[%clk 0:00:14]} 28. cxd4 {[%clk 0:01:07]}  Qh4 {[%clk 0:00:11]} 29. d5 {[%clk 0:00:58]}  Re8 {[%clk 0:00:11]} 30. Qxh4 {[%clk 0:00:56]}  Nxh4 {[%clk 0:00:11]} 31. g3 {[%clk 0:00:56]}  Ng6 {[%clk 0:00:11]} 32. Nhf3 {[%clk 0:00:54]}  Ra8 {[%clk 0:00:09]} 33. Kg2 {[%clk 0:00:54]}  Ra4 {[%clk 0:00:09]} 34. Rb1 {[%clk 0:00:54]}  Ra2 {[%clk 0:00:09]} 35. Kf1 {[%clk 0:00:43]}  Kg7 {[%clk 0:00:06]} 36. Ke2 {[%clk 0:00:43]}  Ne7 {[%clk 0:00:05]} 37. Ke1 {[%clk 0:00:32]}  f5 {[%clk 0:00:05]} 38. exf5 {[%clk 0:00:29]}  Nxf5 {[%clk 0:00:03]} 39. Ne4 {[%clk 0:00:30]}  Ne7 {[%clk 0:00:03]} 40. Rd1 {[%clk 0:00:25]}  Rb2 {[%clk 0:00:03]} 41. Neg5 {[%clk 0:00:18]}  Bxf2+ {[%clk 0:00:02]} 42. Kf1 {[%clk 0:00:17]}  Bb6 {[%clk 0:00:03]} 43. g4 {[%clk 0:00:13]}  Rf2+ {[%clk 0:00:02]} 44. Ke1 {[%clk 0:00:13]}  Rb2 {[%clk 0:00:03]} 45. Ne6+ {[%clk 0:00:12]}  Kf7 {[%clk 0:00:03]} 46. Neg5+ {[%clk 0:00:05]}  Kg6 {[%clk 0:00:03]} 47. Ne4 {[%clk 0:00:05]}  Rxb4 {[%clk 0:00:03]} 48. Nf2 {[%clk 0:00:02]}  Bxf2+ {[%clk 0:00:03]} 49. Kxf2 {[%clk 0:00:03]}  Rxg4 {[%clk 0:00:03]} 50. Ke3 {[%clk 0:00:03]}  Rc4 {[%clk 0:00:03]} 51. Nd4 {[%clk 0:00:03]}  Nxd5+ {[%clk 0:00:03]} 52. Kd3 {[%clk 0:00:04]}  Nf4+ {[%clk 0:00:03]} 53. Ke3 {[%clk 0:00:04]}  c5 {[%clk 0:00:03]} 54. Rg1+ {[%clk 0:00:03]}  Kf6 {[%clk 0:00:02]} 55. Nxb5 {[%clk 0:00:04]}  Nd5+ {[%clk 0:00:03]} 56. Kd3 {[%clk 0:00:04]}  Rb4 {[%clk 0:00:03]} 57. Nxd6 {[%clk 0:00:05]}  Rd4+ {[%clk 0:00:03]} 58. Ke2 {[%clk 0:00:01]}  Nc3+ {[%clk 0:00:04]} 59. Ke3 {[%clk 0:00:02]}  Rxd6 {[%clk 0:00:04]} 60. Rc1 {[%clk 0:00:03]}  Nd5+ {[%clk 0:00:04]} 61. Ke4 {[%clk 0:00:03]}  Ke6 {[%clk 0:00:04]} 62. Rxc5 {[%clk 0:00:03]}  Nf6+ {[%clk 0:00:05]} 63. Ke3 {[%clk 0:00:04]}  Ra6 {[%clk 0:00:05]} 64. Rc4 {[%clk 0:00:03]}  Ke5 {[%clk 0:00:05]} 65. Rc5+ {[%clk 0:00:03]}  Nd5+ {[%clk 0:00:05]} 66. Kd3 {[%clk 0:00:04]}  Ra3+ {[%clk 0:00:05]} 67. Kc4 {[%clk 0:00:04]}  Rc3+ {[%clk 0:00:06]} 68. Kb5 {[%clk 0:00:05]}  Rb3+ {[%clk 0:00:06]} 69. Kc6 {[%clk 0:00:05]}  Rb6+ {[%clk 0:00:06]} 70. Kd7 {[%clk 0:00:06]}  Rd6+ {[%clk 0:00:06]} 71. Kc8 {[%clk 0:00:05]}  Ke6 {[%clk 0:00:06]} 72. Rc1 {[%clk 0:00:05]}  Rb6 {[%clk 0:00:06]} 73. Kd8 {[%clk 0:00:03]}  Kd6 {[%clk 0:00:06]} 74. Ke8 {[%clk 0:00:03]}  Rb7 {[%clk 0:00:05]} 75. Kf8 {[%clk 0:00:03]}  Ke6 {[%clk 0:00:06]} 76. Re1+ {[%clk 0:00:04]}  Kd6 {[%clk 0:00:06]} 77. Kg8 {[%clk 0:00:03]}  Nf4 {[%clk 0:00:06]} 78. Rd1+ {[%clk 0:00:03]}  Ke5 {[%clk 0:00:06]} 79. Re1+ {[%clk 0:00:03]}  Kf5 {[%clk 0:00:06]} 80. Rf1 {[%clk 0:00:03]}  Rc7 {[%clk 0:00:07]} 81. Kf8 {[%clk 0:00:04]}  Rh7 {[%clk 0:00:07]} 82. Ke8 {[%clk 0:00:04]}  Ra7 {[%clk 0:00:07]} 83. Kd8 {[%clk 0:00:04]}  Ke5 {[%clk 0:00:07]} 84. Kc8 {[%clk 0:00:05]}  Nd5 {[%clk 0:00:07]} 85. Re1+ {[%clk 0:00:05]}  Kd6 {[%clk 0:00:07]} 86. Kb8 {[%clk 0:00:05]}  Rh7 {[%clk 0:00:07]} 87. Rd1 {[%clk 0:00:06]}  Kc5 {[%clk 0:00:07]} 88. Kc8 {[%clk 0:00:05]}  Nb4 {[%clk 0:00:06]} 89. Kd8 {[%clk 0:00:05]}  Nc6+ {[%clk 0:00:06]} 90. Ke8 {[%clk 0:00:06]}  Ne5 {[%clk 0:00:06]} 91. Kf8 {[%clk 0:00:06]}  Rf7+ {[%clk 0:00:06]} 92. Kg8 {[%clk 0:00:06]}  Ra7 {[%clk 0:00:07]} 93. Re1 {[%clk 0:00:06]}  Kd5 {[%clk 0:00:06]} 94. Rd1+ {[%clk 0:00:06]}  Ke6 {[%clk 0:00:07]} 95. Re1 {[%clk 0:00:07]}  Kf5 {[%clk 0:00:07]} 96. Kf8 {[%clk 0:00:07]}  Ng6+ {[%clk 0:00:06]} 97. Ke8 {[%clk 0:00:07]}  Kf6 {[%clk 0:00:07]} 98. Kd8 {[%clk 0:00:08]}  Ne5 {[%clk 0:00:07]} 99. Kc8 {[%clk 0:00:08]}  Nc6 {[%clk 0:00:06]} 100. Re6+ {[%clk 0:00:07]}  Kxe6 {[%clk 0:00:06]} 1/2-1/2


[Site "https://www.chess.com"]

[Event "Titled Tuesday Blitz March 15 Late 2022"]
[White "Przybylski, Wojciech"]
[Black "Papasimakopoulos, Alexandros"]
[WhiteFideId "1117599"]
[BlackFideId "4244125"]
[WhiteElo "2133"]
[BlackElo "2340"]
[Result "0-1"]
[Round "09"]
[TimeControl "180+1"]
[Date "2022.03.15"]
[WhiteClock "0:00:01"]
[BlackClock "0:00:11"]

1. e4 {[%clk 0:03:00]}  e6 {[%clk 0:03:00]} 2. d4 {[%clk 0:02:59]}  d5 {[%clk 0:03:00]} 3. Nc3 {[%clk 0:03:00]}  Bb4 {[%clk 0:03:00]} 4. a3 {[%clk 0:03:00]}  Bxc3+ {[%clk 0:03:00]} 5. bxc3 {[%clk 0:03:01]}  dxe4 {[%clk 0:03:00]} 6. Qg4 {[%clk 0:03:01]}  Nf6 {[%clk 0:03:01]} 7. Qxg7 {[%clk 0:03:01]}  Rg8 {[%clk 0:03:02]} 8. Qh6 {[%clk 0:03:02]}  Rg6 {[%clk 0:03:03]} 9. Qe3 {[%clk 0:03:02]}  c5 {[%clk 0:03:03]} 10. Ne2 {[%clk 0:03:02]}  Qa5 {[%clk 0:03:02]} 11. Bd2 {[%clk 0:02:59]}  Nc6 {[%clk 0:03:02]} 12. h3 {[%clk 0:02:59]}  Bd7 {[%clk 0:02:53]} 13. dxc5 {[%clk 0:02:52]}  O-O-O {[%clk 0:02:48]} 14. c4 {[%clk 0:02:52]}  Qa4 {[%clk 0:02:48]} 15. Qb3 {[%clk 0:02:51]}  Ne5 {[%clk 0:02:37]} 16. Nf4 {[%clk 0:02:43]}  Rgg8 {[%clk 0:02:17]} 17. Bc3 {[%clk 0:02:42]}  Rg5 {[%clk 0:02:17]} 18. O-O-O {[%clk 0:02:19]}  Bc6 {[%clk 0:02:04]} 19. Rxd8+ {[%clk 0:02:02]}  Kxd8 {[%clk 0:02:04]} 20. Be2 {[%clk 0:02:02]}  Nfd7 {[%clk 0:02:04]} 21. Rd1 {[%clk 0:01:51]}  Ke7 {[%clk 0:02:03]} 22. g4 {[%clk 0:01:21]}  Nxc5 {[%clk 0:01:45]} 23. Qb4 {[%clk 0:01:13]}  Nd7 {[%clk 0:01:20]} 24. h4 {[%clk 0:01:09]}  Rg8 {[%clk 0:01:16]} 25. g5 {[%clk 0:01:02]}  b6 {[%clk 0:01:09]} 26. Nh5 {[%clk 0:00:57]}  e5 {[%clk 0:00:47]} 27. Nf6 {[%clk 0:00:29]}  Nxf6 {[%clk 0:00:44]} 28. gxf6+ {[%clk 0:00:30]}  Kxf6 {[%clk 0:00:45]} 29. Qb2 {[%clk 0:00:23]}  Nd7 {[%clk 0:00:39]} 30. Rd6+ {[%clk 0:00:04]}  Kf5 {[%clk 0:00:19]} 31. Rd1 {[%clk 0:00:01]}  f6 {[%clk 0:00:17]} 32. Bf1 {[%clk 0:00:01]}  Ke6 {[%clk 0:00:16]} 33. Bh3+ {[%clk 0:00:01]}  f5 {[%clk 0:00:16]} 34. Re1 {[%clk 0:00:01]}  Nc5 {[%clk 0:00:14]} 35. f3 {[%clk 0:00:01]}  Rg3 {[%clk 0:00:11]} 0-1


[Site "https://www.chess.com"]

[Event "Titled Tuesday Blitz March 15 Late 2022"]
[White "Sadilek, Peter"]
[Black "Kubicka, Anna"]
[WhiteFideId "1616439"]
[BlackFideId "1152254"]
[WhiteElo "2145"]
[BlackElo "2000"]
[Result "0-1"]
[Round "09"]
[TimeControl "180+1"]
[Date "2022.03.16"]
[WhiteClock "0:00:01"]
[BlackClock "0:00:39"]

1. e4 {[%clk 0:02:59]}  c5 {[%clk 0:02:59]} 2. Nc3 {[%clk 0:02:58]}  d6 {[%clk 0:02:58]} 3. f4 {[%clk 0:02:58]}  Nc6 {[%clk 0:02:58]} 4. Nf3 {[%clk 0:02:59]}  Bg4 {[%clk 0:02:58]} 5. Bc4 {[%clk 0:02:58]}  e6 {[%clk 0:02:58]} 6. O-O {[%clk 0:02:58]}  Nd4 {[%clk 0:02:55]} 7. d3 {[%clk 0:02:39]}  Be7 {[%clk 0:02:47]} 8. f5 {[%clk 0:02:38]}  Bxf3 {[%clk 0:02:32]} 9. Rxf3 {[%clk 0:02:37]}  Nxf3+ {[%clk 0:02:23]} 10. Qxf3 {[%clk 0:02:37]}  exf5 {[%clk 0:02:21]} 11. Qxf5 {[%clk 0:02:12]}  Nf6 {[%clk 0:02:21]} 12. Nd5 {[%clk 0:02:06]}  Nxd5 {[%clk 0:02:13]} 13. Bxd5 {[%clk 0:02:01]}  O-O {[%clk 0:02:12]} 14. Bxb7 {[%clk 0:02:01]}  Rb8 {[%clk 0:02:12]} 15. Bd5 {[%clk 0:02:02]}  g6 {[%clk 0:02:09]} 16. Qf3 {[%clk 0:01:47]}  Bf6 {[%clk 0:02:08]} 17. c3 {[%clk 0:01:45]}  Bg7 {[%clk 0:02:06]} 18. Bb3 {[%clk 0:01:38]}  Qf6 {[%clk 0:02:05]} 19. Qg3 {[%clk 0:01:32]}  a5 {[%clk 0:01:56]} 20. Bg5 {[%clk 0:01:31]}  Qe5 {[%clk 0:01:53]} 21. Bf4 {[%clk 0:01:31]}  Qh5 {[%clk 0:01:39]} 22. Bxd6 {[%clk 0:01:29]}  Rbd8 {[%clk 0:01:30]} 23. Bxf8 {[%clk 0:01:28]}  Rxf8 {[%clk 0:01:31]} 24. Rf1 {[%clk 0:01:26]}  Qe2 {[%clk 0:01:27]} 25. Qf3 {[%clk 0:01:21]}  Qxb2 {[%clk 0:01:27]} 26. Bxf7+ {[%clk 0:01:19]}  Kh8 {[%clk 0:01:27]} 27. h4 {[%clk 0:00:13]}  Qxc3 {[%clk 0:01:21]} 28. h5 {[%clk 0:00:13]}  gxh5 {[%clk 0:01:13]} 29. Qxh5 {[%clk 0:00:13]}  Qxd3 {[%clk 0:01:11]} 30. e5 {[%clk 0:00:10]}  Qd4+ {[%clk 0:01:09]} 31. Kh1 {[%clk 0:00:11]}  Qxe5 {[%clk 0:01:06]} 32. Qxe5 {[%clk 0:00:10]}  Bxe5 {[%clk 0:01:07]} 33. Bc4 {[%clk 0:00:04]}  Rd8 {[%clk 0:01:00]} 34. Rf5 {[%clk 0:00:02]}  Rd1+ {[%clk 0:00:57]} 35. Bf1 {[%clk 0:00:02]}  Bd4 {[%clk 0:00:55]} 36. g4 {[%clk 0:00:03]}  Kg7 {[%clk 0:00:52]} 37. Kg2 {[%clk 0:00:03]}  Rd2+ {[%clk 0:00:52]} 38. Kf3 {[%clk 0:00:02]}  Rxa2 {[%clk 0:00:51]} 39. Bc4 {[%clk 0:00:02]}  Rf2+ {[%clk 0:00:52]} 40. Ke4 {[%clk 0:00:02]}  Rxf5 {[%clk 0:00:50]} 41. Kxf5 {[%clk 0:00:03]}  h6 {[%clk 0:00:48]} 42. g5 {[%clk 0:00:01]}  h5 {[%clk 0:00:41]} 43. g6 {[%clk 0:00:01]}  h4 {[%clk 0:00:39]} 0-1


[Site "https://www.chess.com"]